fUST/lending_fUST_20241011
["ID","MTS","AMOUNT","RATE_DAILY","PERIOD"]
[340123079,1728633145466,150.0,0.000399,2]
[340123081,1728633269675,-150.0,0.00040354,2]
[340123082,1728633269701,-150.0,0.00040354,2]
[340123083,1728633269726,-300.0,0.00043113,30]
[340123084,1728633278177,436.142,0.00043113,30]
[340123086,1728633287256,164.440165,0.00026986,2]
[340123087,1728633287587,164.440165,0.00034843,2]
[340123088,1728633287967,164.440165,0.00042701,120]
[340123091,1728633451351,150.0,0.000399,2]
[340123093,1728633571543,400.0,0.00044658,2]
[340123094,1728633621787,160.951,0.00037354,2]
[340123095,1728633631553,1227.774,0.00037354,2]
[340123096,1728633632218,1219.0,0.00040354,2]
[340123097,1728633632872,1219.0,0.00043354,2]
[340123098,1728633647260,557.619607,0.00038382,2]
[340123099,1728633655751,9908.8,0.00045,2]
[340123100,1728633666729,166.666666,0.0003773,2]
[340123101,1728633666933,166.666666,0.00042873,2]
[340123102,1728633700964,150.0,0.000433,2]
[340123103,1728633701509,151.000751,0.000443,2]
[340123104,1728633745546,184.7768019,0.00032877,2]
[340123105,1728633746038,739.8889721,0.00034849,120]
[340123106,1728633746699,175.0,0.00043,90]
[340123107,1728633756737,150.0,0.000402,2]
[340123109,1728633783611,164.440165,0.00026986,2]
[340123110,1728633783961,164.440165,0.00036986,2]
[340123111,1728633844074,818.0549942,0.0003845,2]
[340123113,1728633989231,5596.4577168,0.00037646,2]
[340123114,1728633989258,19303.5422832,0.00037646,2]
[340123167,1728634232101,-150.0,0.000402,2]
[340123168,1728634232110,-278.809804,0.00042102,2]
[340123169,1728634232119,-200.0,0.00044658,2]
[340123170,1728634232129,-1219.0,0.00046354,2]
[340123171,1728634232139,-164.440165,0.00046986,120]
[340123172,1728634232149,-1474.37223114,0.0004848,120]
[340123173,1728634232158,-2094.3852076,0.00048606,2]
[340123196,1728634531229,164.440165,0.00026986,2]
[340123199,1728634720513,278.809804,0.00038796,2]
[340123203,1728634928416,164.077197,0.00037698,2]
[340123205,1728635054152,5089.1305508,0.00038673,2]
[340123207,1728635323240,25000.0,0.00033,2]
[340123212,1728635366551,164.440165,0.00026986,2]
[340123243,1728635438584,-404.65273773,0.00033,2]
[340123419,1728635584327,2380.18592685,0.00022911,2]
[340123423,1728635907401,164.440165,0.00026986,2]
[340123432,1728636407765,164.440165,0.00026986,2]
[340123461,1728636640728,-3774.77780182,0.00030256,2]
[340123471,1728636643757,-14262.29509948,0.00030256,2]
[340123472,1728636643767,-150.0,0.00032,120]
[340123473,1728636643777,-183.3104686,0.000329,2]
[340123474,1728636643786,-30368.48268708,0.00033,2]
[340123475,1728636643795,-188.42855402,0.00033,7]
[340123476,1728636643805,-183.3104686,0.00035441,2]
[340123477,1728636643814,-10038.78879038,0.00036,30]
[340123478,1728636643824,-1179.49778492,0.000372,103]
[340123480,1728636643834,-5773.8863001,0.00037932,2]
[340123482,1728636643847,-854.478376,0.00037952,14]
[340123484,1728636643856,-854.478376,0.00037952,14]
[340123486,1728636643866,-183.3104686,0.00037983,2]
[340123488,1728636643875,-150.0,0.00038032,2]
[340123490,1728636643885,-1829.4098834,0.00038043,2]
[340123492,1728636643895,-150.80018939,0.00038107,2]
[340123494,1728636643905,-854.478376,0.00038234,14]
[340123495,1728636643915,-854.478376,0.00038234,14]
[340123496,1728636643928,-5773.8863001,0.00038349,2]
[340123497,1728636643939,-854.478376,0.00038526,14]
[340123498,1728636643950,-854.478376,0.00038526,14]
[340123499,1728636643962,-5773.8863002,0.00038572,2]
[340123500,1728636643972,-659.92,0.0003898,3]
[340123501,1728636643981,-329.96,0.0003898,3]
[340123502,1728636643991,-164.98,0.0003898,3]
[340123503,1728636644000,-494.95,0.0003898,3]
[340123504,1728636644010,-1992.53251807,0.0003899,5]
[340123505,1728636644020,-31718.6644073,0.0003899,5]
[340123506,1728636644030,-236.61519625,0.00038998,15]
[340123507,1728636644039,-294.4656769,0.00038998,15]
[340123508,1728636644048,-500.0,0.00038998,15]
[340123509,1728636644058,-500.0,0.00038998,15]
[340123510,1728636644067,-500.0,0.00038998,15]
[340123511,1728636644077,-500.0,0.00038998,15]
[340123512,1728636644087,-179.0,0.00038998,15]
[340123513,1728636644100,-500.0,0.00038998,15]
[340123514,1728636644110,-500.0,0.00038998,15]
[340123515,1728636644119,-500.0,0.00038998,15]
[340123516,1728636644129,-500.0,0.00038998,15]
[340123517,1728636644139,-22112.74865061,0.00038999,4]
[340123530,1728636922886,164.440165,0.00026986,2]
[340123541,1728637457716,164.440165,0.00026986,2]
[340123593,1728637839020,-164.077197,0.00034655,2]
[340123594,1728637839030,-1835.922803,0.00038609,2]
[340123622,1728637974290,164.440165,0.00026986,2]
[340123636,1728638494406,164.440165,0.00026986,2]
[340123641,1728638924392,1000.0,0.0003,2]
[340123687,1728639037937,-1000.0,0.00032273,7]
[340123689,1728639037949,-163.37419714,0.00032877,2]
[340123691,1728639037959,-1731.0,0.00034849,2]
[340123693,1728639037968,-247.06207693,0.00034849,120]
[340123695,1728639037977,-1000.0,0.00037,5]
[340123697,1728639037987,-943.59822792,0.000379,108]
[340123699,1728639037998,-2404.13483141,0.00038,15]
[340123701,1728639038008,-5048.82,0.000385,50]
[340123703,1728639038018,-150.01,0.00038608,2]
[340123706,1728639038029,-2356.61517061,0.00038608,2]
[340123708,1728639038039,-164.077197,0.00038609,2]
[340123709,1728639038049,-338.80175404,0.000389,2]
[340123710,1728639038058,-154.7,0.00038989,3]
[340123711,1728639038068,-464.14,0.00038989,3]
[340123712,1728639038077,-165.63063738,0.00038998,15]
[340123713,1728639038086,-206.12597383,0.00038998,15]
[340123714,1728639038096,-500.0,0.00038998,15]
[340123715,1728639038105,-500.0,0.00038998,15]
[340123716,1728639038114,-500.0,0.00038998,15]
[340123717,1728639038124,-500.0,0.00038998,15]
[340123718,1728639038133,-500.0,0.00038998,15]
[340123719,1728639038146,-425.3000417,0.00038998,15]
[340123720,1728639038156,-8945.85297177,0.00038999,4]
[340123721,1728639038175,-271.82687819,0.00038999,4]
[340123731,1728639039826,-3052.01785267,0.00038999,4]
[340123807,1728639048603,164.440165,0.00026986,2]
[340123921,1728640734484,4654.0,0.0003,2]
[340123945,1728640942993,598.68125954,0.00025009,30]
[340123970,1728641239264,500.0,0.000252,30]
[340123972,1728641373594,6225.51,0.0003,2]
[340123991,1728641432223,-164.86720315,0.00032877,2]
[340123992,1728641432234,-291.10990137,0.00034849,120]
[340123993,1728641432244,-500.0,0.00035,2]
[340123994,1728641432256,-519.068,0.00038356,120]
[340123995,1728641432267,-245.1131,0.00038705,2]
[340123996,1728641432277,-1963.84597551,0.00038899,2]
[340123997,1728641432292,-150.0,0.000389,2]
[340123998,1728641432302,-1600.73364799,0.000389,2]
[340123999,1728641432312,-175.5,0.00038989,10]
[340124000,1728641432321,-8430.50617198,0.00038999,4]
[340124079,1728641440400,-500.0,0.00038998,15]
[340124081,1728641440414,-500.0,0.00038998,15]
[340124083,1728641440424,-500.0,0.00038998,15]
[340124085,1728641440433,-500.0,0.00038998,15]
[340124087,1728641440443,-204.21080643,0.00038998,15]
[340124091,1728641440452,-22534.09486073,0.00038999,4]
[340124140,1728641443372,-1636.53831292,0.00038899,2]
[340124141,1728641443382,-1134.954857,0.00038999,4]
[340124147,1728641805669,500.0,0.0002,10]
[340124153,1728642444788,160.0,0.0003,2]
[340124156,1728642622833,188.42855402,0.0003,7]
[340124182,1728642632408,-360.393,0.00031,2]
[340124183,1728642632420,-10055.863,0.00033,2]
[340124184,1728642632433,-2610.59737316,0.00033,2]
[340124261,1728642961983,200.0,0.00029872,2]
[340124283,1728643077718,166.666666,0.00029364,2]
[340124288,1728643257354,660.0,0.00029905,2]
[340124293,1728643518227,-244.916108,0.00030016,2]
[340124294,1728643518252,-250.0000276,0.00030273,2]
[340124295,1728643518274,-191.0407997,0.00030383,2]
[340124296,1728643518296,-23191.0640544,0.0003133,2]
[340124297,1728643518318,-160.5293219,0.00031746,2]
[340124298,1728643518340,-5773.8863001,0.00032197,2]
[340124299,1728643518364,-178.11013574,0.00032273,32]
[340124300,1728643518386,-150.0,0.00032286,2]
[340124301,1728643518410,-150.80018939,0.00032329,2]
[340124302,1728643518432,-5773.8863001,0.00032468,2]
[340124303,1728643518455,-5773.8863002,0.00032768,2]
[340124304,1728643518478,-14773.88046287,0.00033,2]
[340124390,1728643838711,-151.0,0.00032768,7]
[340124391,1728643838724,-249.25630969,0.000329,2]
[340124392,1728643838736,-2928.14185105,0.00033,2]
[340124393,1728643838747,-151.0,0.00033,14]
[340124394,1728643838757,-249.25630965,0.0003465,2]
[340124395,1728643838767,-1320.98895321,0.00036,30]
[340124396,1728643838851,-6205.16742891,0.00036,30]
[340124397,1728643838865,-2512.63240826,0.00036,30]
[340124398,1728643838875,-253.248636,0.00036,14]
[340124400,1728643838886,-249.25630965,0.000364,2]
[340124401,1728643838898,-16790.77813932,0.000372,103]
[340124402,1728643838909,-152.734252,0.00038137,14]
[340124403,1728643838920,-249.25630965,0.00038149,2]
[340124404,1728643838934,-1073.85945868,0.000385,40]
[340124416,1728643840691,-3926.14054132,0.000385,40]
[340124417,1728643840700,-155.066597,0.00038594,14]
[340124418,1728643840712,-854.478376,0.00038594,14]
[340124419,1728643840722,-854.478376,0.00038594,14]
[340124420,1728643840732,-854.478376,0.000386,14]
[340124421,1728643840743,-854.478376,0.000386,14]
[340124422,1728643840752,-854.478376,0.00038651,14]
[340124423,1728643840762,-854.478376,0.00038651,14]
[340124424,1728643840772,-1363.78192744,0.00038899,2]
[340124425,1728643840781,-309.405683,0.00038899,14]
[340124426,1728643840791,-309.405683,0.00038899,14]
[340124427,1728643840940,-151.0,0.00038899,14]
[340124428,1728643840951,-854.478376,0.0003899,14]
[340124429,1728643840963,-854.478376,0.0003899,14]
[340124430,1728643840973,-500.0,0.00038998,15]
[340124431,1728643840982,-232.62788475,0.00038998,15]
[340124432,1728643840992,-186.92600504,0.00038998,15]
[340124433,1728643841002,-607.35121974,0.00038998,15]
[340124434,1728643841011,-500.0,0.00038998,15]
[340124435,1728643841022,-500.0,0.00038998,15]
[340124436,1728643841031,-500.0,0.00038998,15]
[340124437,1728643841041,-500.0,0.00038998,15]
[340124438,1728643841050,-500.0,0.00038998,15]
[340124439,1728643841060,-372.85683419,0.00038998,15]
[340124440,1728643841070,-500.0,0.00038998,15]
[340124441,1728643841079,-344.49023399,0.00038998,15]
[340124442,1728643841088,-420.61769402,0.00038998,15]
[340124443,1728643841098,-500.0,0.00038998,15]
[340124444,1728643841108,-500.0,0.00038998,15]
[340124445,1728643841117,-1100.73,0.00038998,2]
[340124446,1728643841126,-1100.73,0.00038998,2]
[340124447,1728643841136,-1100.73,0.00038998,2]
[340124448,1728643841145,-1100.73,0.00038998,2]
[340124449,1728643841155,-1100.73,0.00038998,2]
[340124450,1728643841164,-1100.73,0.00038998,2]
[340124451,1728643841173,-1100.73,0.00038998,2]
[340124452,1728643841183,-1100.73,0.00038998,2]
[340124453,1728643841192,-1100.73,0.00038998,2]
[340124454,1728643841203,-1100.73,0.00038998,2]
[340124455,1728643841214,-28368.04359791,0.00038999,4]
[340124680,1728645043295,-1.6971009,0.000388,120]
[340124683,1728645319815,150.0,0.0003,2]
[340124684,1728645339705,152.7,0.0003,2]
[340124685,1728645400837,150.0,0.0003,2]
[340124686,1728645484286,178.252758,0.00026986,2]
[340124688,1728645551102,5820.0,0.0003,2]
[340124689,1728645640975,0.05351559,0.0003,2]
[340124691,1728645982562,178.252758,0.00026986,2]
[340124723,1728646238089,-405.442021,0.00029482,2]
[340124724,1728646238099,-166.666666,0.00029711,2]
[340124725,1728646238109,-300.0,0.00029999,2]
[340124726,1728646238119,-300.0,0.00029999,2]
[340124727,1728646238130,-8707.47287717,0.0003,2]
[340124766,1728646243125,-10784.47360724,0.0003,2]
[340124768,1728646243135,-225.0,0.00030452,2]
[340124771,1728646243145,-225.0,0.00030535,2]
[340124773,1728646243157,-225.0,0.00030619,2]
[340124775,1728646243168,-5596.4577168,0.00030654,2]
[340124777,1728646243178,-225.0,0.00030702,2]
[340124778,1728646243188,-225.0,0.00030786,2]
[340124779,1728646243198,-225.0,0.00030869,2]
[340124780,1728646243208,-225.0,0.00030953,2]
[340124781,1728646243219,-151.000751,0.00031,2]
[340124782,1728646243229,-225.0,0.00031036,2]
[340124783,1728646243239,-39.60408925,0.0003112,2]
[340124784,1728646243254,-185.39591075,0.0003112,2]
[340124785,1728646243264,-225.0,0.00031204,2]
[340124786,1728646243274,-225.0,0.00031287,2]
[340124787,1728646243284,-225.0,0.00031371,2]
[340124788,1728646243296,-225.0,0.00031454,2]
[340124789,1728646243306,-225.0,0.00031538,2]
[340124790,1728646243315,-225.0,0.00031621,2]
[340124791,1728646243325,-818.0549942,0.00031683,2]
[340124792,1728646243335,-225.0,0.00031705,2]
[340124793,1728646243346,-225.0,0.00031788,2]
[340124794,1728646243357,-225.0,0.00031872,2]
[340124796,1728646243373,-225.0,0.00031955,2]
[340124798,1728646243383,-225.0,0.00032039,2]
[340124800,1728646243392,-159.586149,0.00032107,2]
[340124802,1728646243402,-159.586149,0.00032122,2]
[340124804,1728646243411,-159.586149,0.00032137,2]
[340124806,1728646243420,-159.586149,0.00032151,2]
[340124807,1728646243430,-159.586149,0.00032166,2]
[340124809,1728646243439,-159.586149,0.0003218,2]
[340124811,1728646243448,-159.586149,0.00032195,2]
[340124813,1728646243457,-159.586149,0.0003221,2]
[340124815,1728646243467,-159.586149,0.00032224,2]
[340124817,1728646243476,-159.586149,0.00032239,2]
[340124819,1728646243485,-159.586149,0.00032253,2]
[340124821,1728646243494,-159.586149,0.00032268,2]
[340124823,1728646243503,-166.666666,0.00033762,2]
[340124825,1728646243512,-4603.89639998,0.00036855,2]
[340124827,1728646243522,-157.06857648,0.000369,2]
[340124829,1728646243531,-3000.0,0.00037,44]
[340124831,1728646243542,-3000.0,0.00037,37]
[340124833,1728646243556,-157.06857647,0.00037567,2]
[340124835,1728646243566,-399.15745118,0.00038149,15]
[340124837,1728646243576,-278.465114,0.0003815,14]
[340124839,1728646243587,-278.465114,0.0003815,14]
[340124840,1728646243597,-157.06857647,0.00038233,2]
[340124841,1728646243607,-1170.1728991,0.000388,120]
[340124842,1728646243617,-1697.0,0.000388,15]
[340124843,1728646243627,-157.06857647,0.000389,2]
[340124844,1728646243636,-500.0,0.00038973,2]
[340124845,1728646243645,-1081.33,0.0003898,3]
[340124846,1728646243655,-187.66,0.0003898,10]
[340124847,1728646243666,-540.66,0.00038989,3]
[340124848,1728646243677,-5033.54089488,0.0003899,5]
[340124849,1728646243687,-36543.4075969,0.0003899,5]
[340124850,1728646243696,-1363.78192744,0.00038997,2]
[340124851,1728646243706,-162.83951933,0.00038998,15]
[340124852,1728646243715,-500.0,0.00038998,15]
[340124853,1728646243726,-500.0,0.00038998,15]
[340124854,1728646243737,-500.0,0.00038998,15]
[340124855,1728646243750,-358.39071575,0.00038998,15]
[340124856,1728646243759,-500.0,0.00038998,15]
[340124857,1728646243769,-13447.39377442,0.00038999,4]
[340124870,1728646296345,177.94,0.00029,2]
[340124871,1728646617970,178.252758,0.00026986,2]
[340124874,1728647127897,178.252758,0.00026986,2]
[340124972,1728647438254,-868.65204995,0.00032,2]
[340125143,1728647440204,-2272.76932129,0.00032,2]
[340125432,1728647443211,-767.38862876,0.00032,2]
[340125433,1728647443221,-202.72101,0.00034939,2]
[340125434,1728647443242,-647.97236138,0.00035154,2]
[340125724,1728647446246,-12240.91217022,0.00035154,2]
[340125726,1728647446257,-171.131997,0.00035538,2]
[340125728,1728647446268,-171.131997,0.00035583,2]
[340125730,1728647446279,-168.03055141,0.00035627,2]
[340125936,1728647789866,178.252758,0.00026986,2]
[340125939,1728648289923,178.252758,0.00026986,2]
[340125940,1728648446214,175.0,0.00025,2]
[340126194,1728648640638,705.8,0.00029,2]
[340126200,1728648732073,222.55,0.00029,2]
[340126202,1728648913076,178.252758,0.00026986,2]
[340126206,1728649670683,16158.46810541,0.00029,2]
[340126210,1728649754493,268.68981428,0.00029,2]
[340126259,1728649838760,-693.8033335,0.0003384,2]
[340126260,1728649838772,-202.7210119,0.00033917,2]
[340126261,1728649838926,-197.2789881,0.0003512,2]
[340126264,1728649840596,-4898.6450412,0.0003512,2]
[340126280,1728649843613,-2665.31069194,0.0003512,2]
[340126281,1728649843627,-9641.14397956,0.0003512,2]
[340126282,1728649843641,-338.04269997,0.00035605,2]
[340126283,1728649843651,-3.10144559,0.00035627,2]
[340126284,1728649843661,-171.131997,0.00035672,2]
[340126285,1728649843671,-171.131997,0.00035716,2]
[340126286,1728649843680,-77.5885525,0.00036575,2]
[340126333,1728651032566,-3800.0,0.0003,2]
[340126335,1728651032576,-285.0633801,0.00034658,2]
[340126336,1728651032585,-163.785407,0.00034744,2]
[340126338,1728651032594,-163.785407,0.00034865,2]
[340126339,1728651032603,-455.011,0.00034892,2]
[340126340,1728651032612,-163.785407,0.00034986,2]
[340126341,1728651032625,-163.785407,0.00035106,2]
[340126342,1728651032635,-163.785407,0.00035227,2]
[340126343,1728651032644,-400.0,0.00035258,2]
[340126344,1728651032653,-400.0,0.00035259,2]
[340126345,1728651032663,-163.785407,0.00035348,2]
[340126346,1728651032672,-576.4630193,0.00035423,2]
[340126347,1728651032682,-163.785407,0.00035469,2]
[340126348,1728651032691,-163.785407,0.00035589,2]
[340126349,1728651032701,-163.785407,0.0003571,2]
[340126350,1728651032711,-163.785407,0.00035831,2]
[340126351,1728651032720,-163.785407,0.00035951,2]
[340126352,1728651032728,-163.785407,0.00036072,2]
[340126353,1728651032738,-163.785407,0.00036193,2]
[340126354,1728651032747,-163.785407,0.00036314,2]
[340126355,1728651032757,-163.785407,0.00036434,2]
[340126356,1728651032767,-163.785407,0.00036555,2]
[340126357,1728651032776,-1363.78192744,0.00036574,2]
[340126358,1728651032785,-500.0,0.00036955,2]
[340126359,1728651032794,-402.5993141,0.000371,120]
[340126360,1728651032804,-720.383016,0.000372,14]
[340126361,1728651032813,-720.383016,0.000372,14]
[340126362,1728651032822,-512.687025,0.000372,14]
[340126363,1728651032832,-13924.07992182,0.000372,103]
[340126364,1728651032842,-250.618603,0.000372,14]
[340126365,1728651032851,-250.618603,0.000372,14]
[340126366,1728651032861,-250.618603,0.000372,14]
[340126367,1728651032870,-250.618603,0.000372,14]
[340126368,1728651032879,-250.618603,0.000372,14]
[340126369,1728651032889,-250.618603,0.000372,14]
[340126370,1728651032898,-1629.31817746,0.00037355,2]
[340126371,1728651032907,-500.0,0.00037455,2]
[340126372,1728651032917,-720.383016,0.00037455,14]
[340126373,1728651032926,-720.383016,0.00037455,14]
[340126374,1728651032936,-720.383016,0.00037455,14]
[340126375,1728651032948,-720.383016,0.00037455,14]
[340126376,1728651032957,-512.687025,0.00037455,14]
[340126377,1728651032966,-512.687025,0.00037455,14]
[340126378,1728651032976,-512.687025,0.00037455,14]
[340126379,1728651032985,-250.618603,0.00037455,14]
[340126380,1728651032994,-250.618603,0.00037455,14]
[340126381,1728651033004,-250.618603,0.00037455,14]
[340126382,1728651033014,-250.618603,0.00037455,14]
[340126383,1728651033023,-250.618603,0.00037455,14]
[340126384,1728651033032,-250.618603,0.00037455,14]
[340126385,1728651033042,-160.951,0.00037716,2]
[340126386,1728651033052,-1227.774,0.00037716,2]
[340126387,1728651033062,-720.383016,0.00037716,14]
[340126388,1728651033075,-720.383016,0.00037716,14]
[340126389,1728651033085,-512.687025,0.00037716,14]
[340126390,1728651033094,-512.687025,0.00037716,14]
[340126391,1728651033104,-250.618603,0.00037716,14]
[340126392,1728651033114,-250.618603,0.00037716,14]
[340126393,1728651033123,-250.618603,0.00037716,14]
[340126394,1728651033133,-250.618603,0.00037716,14]
[340126395,1728651033143,-560.0,0.00037795,2]
[340126396,1728651033152,-720.383016,0.00037855,14]
[340126397,1728651033162,-720.383016,0.00037855,14]
[340126398,1728651033172,-512.687025,0.00037855,14]
[340126399,1728651033182,-512.687025,0.00037855,14]
[340126400,1728651033195,-250.618603,0.00037855,14]
[340126401,1728651033205,-250.618603,0.00037855,14]
[340126402,1728651033215,-500.0,0.00037955,2]
[340126403,1728651033225,-720.383016,0.00037955,14]
[340126404,1728651033234,-720.383016,0.00037955,14]
[340126405,1728651033243,-512.687025,0.00037955,14]
[340126406,1728651033253,-512.687025,0.00037955,14]
[340126407,1728651033262,-250.618603,0.00037955,14]
[340126408,1728651033272,-250.618601,0.00037955,14]
[340126409,1728651033281,-230.55324808,0.00038455,2]
[340126451,1728651040833,-1022.83644558,0.00036574,2]
[340126452,1728651040843,-685.07446592,0.00038455,2]
[340126454,1728651040853,-365.35966481,0.00038455,14]
[340126461,1728651043823,-720.383016,0.00038455,14]
[340126462,1728651043833,-512.687025,0.00038455,14]
[340126463,1728651043843,-512.687025,0.00038455,14]
[340126464,1728651043854,-608.25,0.00038599,3]
[340126465,1728651043864,-156.39,0.00038599,10]
[340126466,1728651043874,-228.16772583,0.00038599,10]
[340126467,1728651043886,-553.79227417,0.00038599,10]
[340126468,1728651043896,-500.0,0.00038608,15]
[340126469,1728651043906,-650.87350102,0.00038608,15]
[340126470,1728651043916,-500.0,0.00038608,15]
[340126471,1728651043926,-64.39917501,0.00038608,15]
[340126472,1728651043941,-435.60082499,0.00038608,15]
[340126473,1728651043951,-500.0,0.00038608,15]
[340126474,1728651043962,-500.0,0.00038608,15]
[340126475,1728651043972,-133.79917505,0.00038608,15]
[340126500,1728651664425,-186.627279,0.00034899,2]
[340126501,1728651664451,-400.0,0.00034999,2]
[340126502,1728651664478,-10551.08524797,0.00035,2]
[340126503,1728651664503,-5653.07838215,0.00037624,2]
[340126504,1728651664528,-233.866072,0.00037803,14]
[340126505,1728651664553,-233.866072,0.00037803,14]
[340126506,1728651664578,-205.07481,0.00037803,14]
[340126507,1728651664603,-205.07481,0.00037803,14]
[340126508,1728651664631,-150.61215566,0.00037864,2]
[340126509,1728651664656,-306.2635,0.000379,14]
[340126510,1728651664681,-306.2635,0.000379,14]
[340126511,1728651664710,-1219.0,0.00037904,2]
[340126512,1728651664736,-233.866072,0.00037998,14]
[340126513,1728651664760,-233.866072,0.00037998,14]
[340126514,1728651664785,-205.07481,0.00037998,14]
[340126515,1728651664811,-205.07481,0.00037998,14]
[340126516,1728651664835,-5653.07838215,0.00038008,2]
[340126517,1728651664859,-5653.07838216,0.00038094,2]
[340126518,1728651664883,-306.2635,0.000382,14]
[340126519,1728651664906,-306.2635,0.000382,14]
[340126520,1728651664930,-205.07481,0.00038246,14]
[340126521,1728651664962,-205.07481,0.00038246,14]
[340126522,1728651664986,-426.89668904,0.0003845,20]
[340126523,1728651665011,-1022.83644557,0.00038454,2]
[340126524,1728651665035,-709.62,0.0003857,3]
[340126525,1728651665058,-709.62,0.0003857,3]
[340126526,1728651665082,-500.0,0.00038579,15]
[340126527,1728651665107,-500.0,0.00038579,15]
[340126528,1728651665131,-500.0,0.00038579,15]
[340126529,1728651665155,-500.0,0.00038579,15]
[340126530,1728651665180,-500.0,0.00038579,15]
[340126531,1728651665207,-500.0,0.00038579,15]
[340126532,1728651665366,-306.20418329,0.00038579,15]
[340126533,1728651665393,-500.0,0.00038579,15]
[340126534,1728651665419,-500.0,0.00038579,15]
[340126535,1728651665442,-500.0,0.00038579,15]
[340126536,1728651665473,-500.0,0.00038579,15]
[340126537,1728651665498,-500.0,0.00038579,15]
[340126538,1728651665523,-500.0,0.00038579,15]
[340126539,1728651665548,-500.0,0.00038579,15]
[340126540,1728651665575,-500.0,0.00038579,15]
[340126541,1728651665600,-500.0,0.00038579,15]
[340126542,1728651665630,-500.0,0.00038579,15]
[340126543,1728651665656,-500.0,0.00038579,15]
[340126544,1728651665683,-500.0,0.00038579,15]
[340126545,1728651665713,-500.0,0.00038579,15]
[340126546,1728651665740,-500.0,0.00038579,15]
[340126547,1728651665765,-500.0,0.00038579,15]
[340126548,1728651665789,-500.0,0.00038579,15]
[340126549,1728651665815,-500.0,0.00038579,15]
[340126550,1728651665840,-500.0,0.00038579,15]
[340126551,1728651665865,-500.0,0.00038579,15]
[340126552,1728651665890,-500.0,0.00038579,15]
[340126553,1728651665921,-500.0,0.00038579,15]
[340126554,1728651665945,-500.0,0.00038579,15]
[340126555,1728651665976,-500.0,0.00038579,15]
[340126556,1728651666001,-500.0,0.00038579,15]
[340126557,1728651666028,-500.0,0.00038579,15]
[340126558,1728651666053,-500.0,0.00038579,15]
[340126559,1728651666077,-500.0,0.00038579,15]
[340126560,1728651666103,-4781.86385014,0.0003858,5]
[340126561,1728651666131,-36263.6779296,0.0003858,5]
[340126562,1728651666159,-233.866072,0.00038589,14]
[340126563,1728651666184,-233.866072,0.00038589,14]
[340126564,1728651666212,-233.866072,0.00038589,14]
[340126565,1728651666238,-233.866072,0.00038589,14]
[340126566,1728651666264,-233.866072,0.00038589,14]
[340126567,1728651666292,-233.866072,0.00038589,14]
[340126568,1728651666321,-233.866072,0.00038589,14]
[340126569,1728651666346,-233.866072,0.00038589,14]
[340126570,1728651666372,-233.866072,0.00038589,14]
[340126571,1728651666396,-233.866072,0.00038589,14]
[340126572,1728651666423,-205.07481,0.00038589,14]
[340126573,1728651666449,-205.07481,0.00038589,14]
[340126574,1728651666478,-205.07481,0.00038589,14]
[340126575,1728651666503,-205.07481,0.00038589,14]
[340126576,1728651666530,-205.07481,0.00038589,14]
[340126577,1728651666555,-205.07481,0.00038589,14]
[340126578,1728651666580,-205.07481,0.00038589,14]
[340126579,1728651666608,-205.07481,0.00038589,14]
[340126580,1728651666637,-205.07481,0.00038589,14]
[340126581,1728651666663,-205.07481,0.00038589,14]
[340126582,1728651666691,-23569.48233341,0.0003859,2]